bitfinex/quotes_BTCUSD_20260103
["timestamp","ask_amount","ask_price","bid_price","bid_amount"]
[1767426853992,0.01116445,89570.0,89563.0,0.11454465]
[1767426854235,0.01116445,89570.0,89564.0,0.0111652]
[1767426854586,0.01116457,89569.0,89564.0,0.0111652]
[1767426854790,0.01116457,89569.0,89563.0,0.00879367]
[1767426854939,0.01116445,89570.0,89564.0,0.0111652]
[1767426855263,0.01116457,89569.0,89564.0,0.0111652]
[1767426855605,0.01116457,89569.0,89563.0,0.00879367]
[1767426856059,0.01116457,89569.0,89564.0,0.0111652]
[1767426856208,0.01116457,89569.0,89563.0,0.00879367]
[1767426856652,0.0111647,89568.0,89563.0,0.00879367]
[1767426857207,0.0111647,89568.0,89562.0,0.0610904]
[1767426857645,0.01116482,89567.0,89562.0,0.01116544]
[1767426857852,0.01116507,89565.0,89560.0,0.04992496]
[1767426858093,0.0111652,89564.0,89560.0,0.04992496]
[1767426858253,0.01116532,89563.0,89560.0,0.04992496]
[1767426858454,0.06699197,89563.0,89557.0,0.01116607]
[1767426858651,0.01116557,89561.0,89556.0,0.01116619]
[1767426858914,0.04936339,89572.0,89548.0,0.04992496]
[1767426858915,0.01116607,89557.0,89555.0,0.0112]
[1767426859058,0.06699601,89558.0,89555.0,0.01126022]
[1767426859258,0.01116594,89558.0,89555.0,0.01126022]
[1767426861511,0.0558266,89564.0,89555.0,0.01126022]
[1767426861743,0.06699166,89564.0,89558.0,0.000999]
[1767426861972,0.01116544,89562.0,89557.0,0.01116607]
[1767426862102,0.01116532,89563.0,89557.0,0.01116607]
[1767426862503,0.0112,89566.0,89563.0,0.01116532]
[1767426862729,0.0112,89566.0,89563.0,0.01212071]
[1767426862930,0.0112,89566.0,89563.0,0.000999]
[1767426863136,0.0112,89566.0,89563.0,0.01116532]
[1767426863336,0.0112,89566.0,89562.0,0.01116544]
[1767426863932,0.0112,89566.0,89563.0,0.01116532]
[1767426864669,0.0112,89566.0,89562.0,0.01116544]
[1767426864867,0.0112,89566.0,89563.0,0.01116532]
[1767426865001,0.0112,89566.0,89561.0,0.01116557]
[1767426865858,0.01116507,89565.0,89558.0,0.01116594]
[1767426866175,0.01116544,89562.0,89556.0,0.01116619]
[1767426866697,0.01116557,89561.0,89556.0,0.01116619]
[1767426866975,0.01116569,89560.0,89555.0,6.022e-05]
[1767426867189,0.0669957,89558.0,89555.0,6.022e-05]
[1767426867357,0.01116594,89558.0,89555.0,6.022e-05]
[1767426867561,0.01116557,89561.0,89558.0,0.000999]
[1767426867724,0.0669869,89570.0,89562.0,0.01116544]
[1767426867927,0.0111647,89568.0,89562.0,0.01116544]
[1767426868186,0.0112,89574.0,89555.0,6.022e-05]
[1767426868187,0.01116407,89573.0,89568.0,0.01106474]
[1767426868325,0.00023755,89568.0,89566.0,0.01116495]
[1767426868525,5.5e-07,89568.0,89566.0,0.01116495]
[1767426868766,5.5e-07,89568.0,89565.0,0.01116507]
[1767426870589,5.5e-07,89568.0,89565.0,0.06698984]
[1767426871483,5.5e-07,89568.0,89565.0,0.11422127]
[1767426872352,5.5e-07,89568.0,89566.0,0.05582425]
[1767426874996,5.5e-07,89568.0,89565.0,0.06698984]
[1767426874997,0.000237,89566.0,89565.0,0.01116507]
[1767426875197,0.000237,89566.0,89564.0,0.0111652]
[1767426875609,5.5e-07,89568.0,89565.0,0.01116507]
[1767426876498,5.5e-07,89568.0,89565.0,0.01092807]
[1767426876931,5.5e-07,89568.0,89565.0,0.01116507]
[1767426877865,5.5e-07,89568.0,89566.0,0.05582432]
[1767426883716,5.5e-07,89568.0,89567.0,0.04723143]
[1767426883876,5.5e-07,89568.0,89566.0,0.05582432]
[1767426884082,5.5e-07,89568.0,89565.0,0.11422134]
[1767426885298,5.5e-07,89568.0,89567.0,0.04723143]
[1767426885920,0.0001498,89579.0,89572.0,0.05582087]
[1767426886126,0.02251313,89579.0,89573.0,0.01116407]
[1767426886300,0.01116345,89578.0,89572.0,0.0111642]
[1767426887012,0.01116357,89577.0,89571.0,0.01116432]
[1767426887412,0.01116357,89577.0,89572.0,0.0111642]
[1767426887596,0.01116357,89577.0,89571.0,0.01116432]
[1767426888266,0.0111637,89576.0,89571.0,0.01116432]
[1767426888405,0.0111637,89576.0,89570.0,0.01116445]
[1767426888606,0.0111637,89576.0,89570.0,0.01112084]
[1767426888928,0.01116357,89577.0,89571.0,0.01116432]
[1767426889308,0.01116395,89574.0,89565.0,0.06699015]
[1767426889495,0.01116407,89573.0,89567.0,0.01116482]
[1767426889694,0.01116407,89573.0,89568.0,0.0111647]
[1767426889917,0.0111642,89572.0,89567.0,0.01116482]
[1767426890114,0.0111642,89572.0,89567.0,0.01112122]
[1767426890292,0.01116407,89573.0,89567.0,0.01112122]
[1767426891376,0.0111642,89572.0,89567.0,0.01112122]
[1767426892027,0.0111642,89572.0,89566.0,0.01116495]
[1767426892195,0.0111642,89572.0,89567.0,0.01116482]
[1767426892394,0.0111642,89572.0,89566.0,0.01116495]
[1767426892599,0.0111642,89572.0,89567.0,0.01116482]
[1767426895331,0.0111642,89572.0,89566.0,0.01116495]
[1767426895519,0.0111642,89572.0,89567.0,0.01116482]
[1767426896150,0.0111642,89572.0,89566.0,0.01116495]
[1767426897459,0.01116432,89571.0,89566.0,0.01116495]
[1767426897803,0.0111647,89568.0,89562.0,0.01116544]
[1767426898122,0.01116482,89567.0,89560.0,0.02236569]
[1767426898346,0.01116495,89566.0,89560.0,0.02236569]
[1767426898558,0.01116457,89569.0,89566.0,0.000999]
[1767426898768,0.0111647,89568.0,89563.0,0.01116532]
[1767426898932,0.01116457,89569.0,89562.0,0.01116544]
[1767426899130,0.01116457,89569.0,89563.0,0.01116532]
[1767426899334,0.0111647,89568.0,89563.0,0.01116532]
[1767426900699,0.01116482,89567.0,89561.0,0.01116557]
[1767426900862,0.22328176,89573.0,89344.0,0.59696651]
[1767426900863,0.01116532,89563.0,89562.0,0.0112]
[1767426901307,0.05582662,89563.0,89562.0,0.0112]
[1767426901619,0.01116507,89565.0,89562.0,0.0112]
[1767426901620,0.0669909,89565.0,89562.0,0.0112]
[1767426901829,0.01116507,89565.0,89562.0,0.0112]
[1767426902991,0.05582347,89569.0,89562.0,0.0112]
[1767426903394,0.01116457,89569.0,89563.0,0.01116532]
[1767426903796,0.0111647,89568.0,89562.0,0.02236544]
[1767426904232,0.01116495,89566.0,89562.0,0.0112]
[1767426904615,0.01116507,89565.0,89562.0,0.0112]
[1767426905102,0.01116495,89566.0,89562.0,0.0112]
[1767426905520,0.066989,89567.0,89562.0,0.0112]
[1767426905722,0.01116582,89559.0,89556.0,0.10732253]
[1767426906102,0.06699548,89559.0,89556.0,0.10732253]
[1767426906629,0.06699616,89558.0,89555.0,0.01126022]
[1767426906975,0.01116569,89560.0,89555.0,0.01126022]
[1767426906976,0.0111642,89572.0,89564.0,0.01106524]
[1767426907097,0.01116407,89573.0,89567.0,0.01116482]
[1767426907303,0.0111642,89572.0,89567.0,0.01116482]
[1767426907523,0.0111642,89572.0,89566.0,0.01116495]
[1767426907963,0.01116432,89571.0,89565.0,0.01116507]
[1767426908162,0.04855094,89570.0,89566.0,0.01116495]
[1767426908913,0.04755194,89570.0,89567.0,0.01116482]
[1767426909194,0.06698181,89577.0,89567.0,0.01116482]
[1767426909195,0.04855094,89575.0,89571.0,0.01116432]
[1767426909322,0.05971476,89575.0,89570.0,0.11848698]
[1767426909524,0.04855094,89575.0,89571.0,0.01116432]
[1767426910021,0.04855094,89575.0,89570.0,0.11848698]
[1767426910022,0.04855094,89575.0,89570.0,0.01116445]
[1767426910223,0.04855094,89571.0,89565.0,0.05582504]
[1767426910662,0.04855094,89565.0,89563.0,0.01116532]
[1767426910868,0.04855094,89565.0,89563.0,0.06699185]
[1767426911086,0.04855094,89565.0,89563.0,0.07819185]
[1767426912073,0.04855094,89570.0,89565.0,0.01116507]
[1767426912311,0.04855094,89570.0,89563.0,0.0112]
[1767426912312,0.04855094,89566.0,89563.0,0.0112]
[1767426912608,0.04855094,89566.0,89561.0,0.0112]
[1767426912609,0.04855094,89563.0,89561.0,0.0112]
[1767426912811,0.0111652,89564.0,89561.0,0.0112]
[1767426914809,0.0111652,89564.0,89558.0,0.00227167]
[1767426915009,0.0111652,89564.0,89560.0,0.0112]
[1767426915266,0.01116495,89566.0,89560.0,0.02236569]
[1767426915563,0.04855094,89566.0,89564.0,0.000999]
[1767426915712,0.04855094,89566.0,89561.0,0.01116557]
[1767426915912,0.0111647,89568.0,89562.0,0.01116544]
[1767426916119,0.0111647,89568.0,89561.0,0.01116557]
[1767426916368,0.0111647,89568.0,89562.0,0.01116544]
[1767426916592,0.01116482,89567.0,89562.0,0.01116544]
[1767426917070,0.01116482,89567.0,89560.0,0.07819365]
[1767426917071,0.01116495,89566.0,89560.0,0.02236569]
[1767426917277,0.01116495,89566.0,89561.0,0.01116557]
[1767426917971,0.01116482,89567.0,89561.0,0.01116557]
[1767426918182,0.01116495,89566.0,89560.0,0.02236569]
[1767426918436,0.01116495,89566.0,89561.0,0.01116557]
[1767426920210,0.01116482,89567.0,89558.0,0.00227167]
[1767426920211,0.0112,89572.0,89567.0,0.01116482]
[1767426920414,0.05890694,89572.0,89569.0,0.01116457]
[1767426920587,0.010356,89572.0,89568.0,0.0111647]
[1767426921302,0.009357,89572.0,89569.0,0.01116457]
[1767426921682,0.04855094,89571.0,89565.0,0.22330143]
[1767426921920,0.0112,89573.0,89569.0,0.01116457]
[1767426922534,0.0112,89573.0,89570.0,0.01116445]
[1767426923343,0.000999,89570.0,89566.0,0.01116495]
[1767426923547,0.000999,89570.0,89567.0,0.01116482]
[1767426923764,0.02236407,89573.0,89567.0,0.01116482]
[1767426923924,0.01116432,89571.0,89565.0,0.01116507]
[1767426924298,0.01116432,89571.0,89566.0,0.01116495]
[1767426924494,0.01116432,89571.0,89565.0,0.01116507]
[1767426924694,0.000999,89565.0,89562.0,0.01116544]
[1767426924911,0.000999,89565.0,89558.0,0.05582956]
[1767426924912,0.000999,89565.0,89558.0,0.0112]
[1767426925111,0.05682441,89565.0,89558.0,0.0112]
[1767426925314,0.01116482,89567.0,89558.0,0.02236594]
[1767426925551,0.05582399,89568.0,89560.0,0.01116569]
[1767426925552,0.06698873,89568.0,89560.0,0.01116569]
[1767426925767,0.01116482,89567.0,89560.0,0.01116569]
[1767426925970,0.01116495,89566.0,89561.0,0.01116557]
[1767426926166,0.01116482,89567.0,89561.0,0.01116557]
[1767426926524,0.0111647,89568.0,89562.0,0.01116544]
[1767426926741,0.0111647,89568.0,89561.0,0.01116557]
[1767426926742,0.01116482,89567.0,89561.0,0.01116557]
[1767426927095,0.0111647,89568.0,89562.0,0.01116544]
[1767426928139,0.01116482,89567.0,89562.0,0.01116544]
[1767426928555,0.0111647,89568.0,89562.0,0.01116544]
[1767426928751,0.0111647,89568.0,89561.0,0.01116557]
[1767426928954,0.01116482,89567.0,89562.0,0.01116544]
[1767426929559,0.01116482,89567.0,89560.0,0.06699366]
[1767426929560,0.01116495,89566.0,89560.0,0.01116569]
[1767426929760,0.01116495,89566.0,89558.0,0.11534823]
[1767426929761,0.000999,89560.0,89557.0,0.02236607]
[1767426929985,0.01116532,89563.0,89557.0,0.02236607]
[1767426930183,0.01116544,89562.0,89557.0,0.02236607]
[1767426930406,0.05582537,89565.0,89557.0,0.02236607]
[1767426930607,0.0111652,89564.0,89558.0,0.01116594]
[1767426930783,0.01116544,89562.0,89557.0,0.0112]
[1767426930985,0.01116544,89562.0,89557.0,0.02236607]
[1767426931367,0.01116544,89562.0,89557.0,0.0112]
[1767426931612,0.01116544,89562.0,89557.0,0.02236607]
[1767426931806,0.01116544,89562.0,89557.0,0.0112]
[1767426932208,0.01116532,89563.0,89557.0,0.02236607]
[1767426934402,0.01116557,89561.0,89557.0,0.0112]
[1767426934643,0.01116532,89563.0,89557.0,0.02236607]
[1767426934998,0.01116544,89562.0,89557.0,0.0112]
[1767426935202,0.01116544,89562.0,89557.0,0.02236607]
[1767426935650,0.01116532,89563.0,89557.0,0.02236607]
[1767426935959,0.01116544,89562.0,89557.0,0.02236607]
[1767426936322,0.01116544,89562.0,89556.0,0.01116619]
[1767426936525,0.01116544,89562.0,89556.0,0.02236619]
[1767426936747,0.01116544,89562.0,89557.0,0.01116607]
[1767426936909,0.01116544,89562.0,89556.0,0.02236619]
[1767426936910,0.01116557,89561.0,89556.0,0.02236619]
[1767426937114,0.01116557,89561.0,89556.0,0.0112]
[1767426937337,0.02815782,89563.0,89558.0,0.04654833]
[1767426937540,0.02815782,89563.0,89558.0,0.04554933]
[1767426937795,0.01116544,89562.0,89558.0,0.04554933]
[1767426938176,0.01116557,89561.0,89558.0,0.04554933]
[1767426938355,0.01116544,89562.0,89558.0,0.04554933]
[1767426938763,0.01116557,89561.0,89558.0,0.04554933]
[1767426941404,0.06699392,89561.0,89558.0,0.04554933]
[1767426943565,0.06599492,89561.0,89558.0,0.04554933]
[1767426943756,0.01116569,89560.0,89555.0,0.01122654]
[1767426943960,0.01116569,89560.0,89556.0,0.05774833]
[1767426945315,0.01016657,89561.0,89556.0,0.05774833]
[1767426946011,0.00653728,89562.0,89556.0,0.05774833]
[1767426946362,0.01116569,89560.0,89556.0,0.05774833]
[1767426946900,0.01116569,89560.0,89556.0,0.04654833]
[1767426947115,0.01116532,89563.0,89542.0,0.05771627]
[1767426947116,0.01116719,89548.0,89542.0,0.05771627]
[1767426947282,0.01116719,89548.0,89543.0,0.0112]
[1767426947481,0.01116719,89548.0,89544.0,0.0112]
[1767426947482,0.06700405,89547.0,89544.0,0.0112]
[1767426947908,0.06700599,89545.0,89542.0,0.00010788]
[1767426948112,0.05583891,89544.0,89542.0,0.00010788]
[1767426948358,0.06700599,89545.0,89542.0,0.00010788]
[1767426949762,0.05583887,89544.0,89542.0,0.00010788]
[1767426951602,0.01116856,89537.0,89534.0,0.0112]
[1767426951809,0.01116844,89538.0,89534.0,0.0112]
[1767426951810,0.01116844,89538.0,89534.0,0.00035971]
[1767426951950,0.06700849,89541.0,89534.0,0.01152865]
[1767426952148,0.01116819,89540.0,89534.0,0.00035971]
[1767426952788,0.01116844,89538.0,89534.0,0.00035971]
[1767426953141,0.01116856,89537.0,89534.0,0.00035971]
[1767426953287,0.01016956,89537.0,89534.0,0.00035971]
[1767426953829,0.06601246,89537.0,89534.0,0.00035971]
[1767426954033,0.0558439,89536.0,89534.0,7.1e-07]
[1767426957317,0.05584533,89533.0,89532.0,1e-08]
[1767426957519,0.05620504,89533.0,89532.0,1e-08]
[1767426961419,0.05620504,89533.0,89518.0,0.0002]
[1767426961420,0.01117031,89523.0,89518.0,0.0002]
[1767426961589,0.01117031,89523.0,89520.0,0.0112]
[1767426961590,0.06657861,89522.0,89520.0,0.0112]
[1767426961791,0.01072593,89522.0,89520.0,0.0112]
[1767426961989,0.01072593,89522.0,89518.0,0.0002]
[1767426962620,0.01117056,89521.0,89518.0,0.0002]
[1767426963173,0.06702338,89521.0,89518.0,0.0002]
[1767426963390,0.01117056,89521.0,89518.0,0.0002]
[1767426965272,0.05585515,89518.0,89516.0,2.5e-07]
[1767426969382,0.10266167,89518.0,89516.0,2.5e-07]
[1767426969808,0.04680652,89517.0,89516.0,2.5e-07]
[1767426977942,0.04660652,89517.0,89516.0,2.5e-07]
[1767426978164,0.0112,89519.0,89516.0,2.5e-07]
[1767426978390,0.06917733,89519.0,89516.0,2.5e-07]
[1767426978951,0.02237081,89519.0,89516.0,2.5e-07]
[1767426979195,0.06917733,89519.0,89516.0,2.5e-07]
[1767426979395,0.04680652,89518.0,89516.0,2.5e-07]
[1767426979553,0.02237081,89519.0,89516.0,2.5e-07]
[1767426979753,0.05585507,89518.0,89516.0,2.5e-07]
[1767426981469,0.01117081,89519.0,89516.0,2.5e-07]
[1767426982294,0.0112,89518.0,89516.0,2.5e-07]
[1767426982454,0.05585531,89517.0,89516.0,2.5e-07]
[1767426982667,0.0112,89518.0,89516.0,2.5e-07]
[1767426982873,0.05585531,89517.0,89516.0,2.5e-07]
[1767426984274,0.0112,89518.0,89516.0,2.5e-07]
[1767426984408,0.01117056,89521.0,89516.0,2.5e-07]
[1767426984409,0.0112,89521.0,89516.0,0.05585587]
[1767426984749,0.0112,89521.0,89516.0,0.05585593]
[1767426984887,0.0112,89521.0,89518.0,0.01117093]
[1767426985588,0.0112,89521.0,89516.0,0.05585593]
[1767426985792,0.0112,89521.0,89517.0,0.01117106]
[1767426986221,0.0112,89521.0,89518.0,0.01117093]
[1767426989299,0.0112,89524.0,89520.0,0.01117068]
[1767426989598,0.02237018,89524.0,89518.0,0.01117093]
[1767426989825,0.01116968,89528.0,89522.0,0.01117043]
[1767426990004,0.05010528,89533.0,89524.0,0.06702112]
[1767426990254,0.06127434,89533.0,89527.0,0.01116981]
[1767426990422,0.05010528,89533.0,89528.0,0.01116968]
[1767426990629,0.05010528,89533.0,89529.0,0.01116956]
[1767426990780,0.05010528,89533.0,89528.0,0.01116968]
[1767426990781,0.06127434,89533.0,89528.0,0.01116968]
[1767426990982,0.05010528,89533.0,89530.0,0.01116944]
[1767426991180,0.05010528,89533.0,89529.0,0.01116956]
[1767426991432,0.05010528,89533.0,89530.0,0.01116944]
[1767426991627,0.00035971,89533.0,89530.0,0.01116944]
[1767426992006,0.01116844,89538.0,89532.0,0.01116919]
[1767426992363,0.01116844,89538.0,89531.0,0.01116931]
[1767426992567,0.01116844,89538.0,89530.0,0.06701617]
[1767426992786,0.01116844,89538.0,89531.0,0.01116931]
[1767426992950,0.01116856,89537.0,89531.0,0.01116931]
[1767426993149,0.01116869,89536.0,89531.0,0.01116931]
[1767426993352,0.01116869,89536.0,89530.0,0.01116944]
[1767426993562,0.01116869,89536.0,89531.0,0.01116931]
[1767426993765,0.01116881,89535.0,89530.0,0.01116944]
[1767426994377,0.000999,89530.0,89526.0,0.06701919]
[1767426994558,0.000999,89530.0,89526.0,0.01116993]
[1767426994760,0.01116944,89530.0,89524.0,0.02237018]
[1767426994964,0.01116956,89529.0,89524.0,0.02237018]
[1767426995158,0.01116944,89530.0,89524.0,0.02237018]
[1767426995365,0.01116968,89528.0,89524.0,0.0112]
[1767426995882,0.01116956,89529.0,89524.0,0.0112]
[1767426996265,0.01116956,89529.0,89524.0,0.02237018]
[1767426996599,0.01116944,89530.0,89524.0,0.02237018]
[1767426996747,0.01116919,89532.0,89526.0,0.01116993]
[1767426996948,0.01116931,89531.0,89525.0,0.01117006]
[1767426997881,0.01116931,89531.0,89526.0,0.01116993]
[1767426998086,0.01116931,89531.0,89525.0,0.01117006]
[1767426999505,0.11676146,89531.0,89524.0,0.0112]
[1767426999837,0.01116944,89530.0,89524.0,0.02237018]
[1767427000035,0.06091488,89531.0,89524.0,0.02237018]
[1767427000193,0.06091488,89531.0,89526.0,0.01116993]
[1767427000397,0.01116944,89530.0,89524.0,0.0112]
[1767427000599,0.01116968,89528.0,89524.0,0.0112]
[1767427000797,0.01117006,89525.0,89518.0,0.01117093]
[1767427001047,6.021e-05,89525.0,89521.0,0.01117056]
[1767427001932,6.021e-05,89525.0,89522.0,0.06702203]
[1767427005070,6.021e-05,89525.0,89524.0,0.05585094]
[1767427005508,0.000999,89524.0,89523.0,0.05585118]
[1767427005858,0.01116944,89530.0,89525.0,0.01117006]
[1767427006094,0.01116931,89531.0,89525.0,0.01117006]
[1767427006253,0.01116944,89530.0,89525.0,0.01117006]
[1767427007199,0.01116931,89531.0,89525.0,0.01117006]
[1767427008909,0.01116944,89530.0,89524.0,0.01117018]
[1767427009168,0.01116956,89529.0,89524.0,0.01117018]
[1767427009534,0.01116931,89531.0,89524.0,0.01117018]
[1767427009900,0.01116944,89530.0,89524.0,0.01117018]
[1767427010103,0.01116931,89531.0,89525.0,0.01117006]
[1767427010720,0.01116931,89531.0,89524.0,0.01117018]
[1767427010921,0.01116944,89530.0,89524.0,0.01117018]
[1767427011894,0.01116906,89533.0,89526.0,0.01116993]
[1767427012139,0.01116906,89533.0,89528.0,0.01116968]
[1767427012310,0.01116894,89534.0,89528.0,0.01116968]
[1767427012695,0.01116906,89533.0,89528.0,0.01116968]
[1767427012929,0.01116906,89533.0,89527.0,0.01116981]
[1767427013387,0.01116919,89532.0,89526.0,0.01116993]
[1767427013873,0.01116931,89531.0,89526.0,0.01116993]
[1767427014157,0.01116919,89532.0,89526.0,0.01116993]
[1767427014393,0.01116919,89532.0,89527.0,0.01116981]
[1767427014540,0.01116919,89532.0,89526.0,0.01116993]
[1767427015203,0.01116944,89530.0,89524.0,0.01117018]
[1767427015401,0.01116944,89530.0,89525.0,0.01117006]
[1767427015899,0.01116956,89529.0,89524.0,0.01117018]
[1767427016126,0.06701795,89529.0,89521.0,0.01117056]
[1767427016340,0.01116944,89530.0,89524.0,0.01117018]
[1767427016530,0.01116944,89530.0,89525.0,0.01117006]
[1767427016964,0.01116944,89530.0,89524.0,0.01117018]
[1767427017516,0.01116956,89529.0,89524.0,0.01117018]
[1767427017720,0.01116944,89530.0,89524.0,0.01117018]
[1767427018123,0.01116944,89530.0,89525.0,0.01117006]
[1767427018820,0.01116956,89529.0,89524.0,0.01117018]
[1767427019616,0.01116906,89533.0,89528.0,0.01116968]
[1767427019832,0.01116906,89533.0,89527.0,0.01116981]
[1767427020045,0.11675801,89536.0,89528.0,0.01116968]
[1767427020353,0.01116906,89533.0,89528.0,0.01116968]
[1767427021118,0.01116769,89544.0,89537.0,0.01116856]
[1767427021347,0.01116769,89544.0,89538.0,0.01116844]
[1767427021487,0.04507218,89543.0,89536.0,0.01116869]
[1767427021686,0.0002,89549.0,89545.0,0.01116756]
[1767427022154,0.0002,89549.0,89546.0,0.01116744]
[1767427022502,0.0002,89549.0,89546.0,0.06700459]
[1767427022886,0.0002,89549.0,89546.0,0.01116744]
[1767427023931,0.00029238,89549.0,89546.0,0.01116744]
[1767427024383,0.000999,89546.0,89543.0,0.01116781]
[1767427024567,0.00029238,89549.0,89545.0,0.01116756]
[1767427024770,0.00029238,89549.0,89546.0,0.01116744]
[1767427025310,0.000999,89546.0,89543.0,0.01116781]
[1767427025665,0.00029238,89549.0,89545.0,0.01116756]
[1767427026352,0.00029238,89549.0,89546.0,0.01116744]
[1767427026778,0.00029238,89549.0,89545.0,0.01116756]
[1767427027157,0.00029238,89549.0,89546.0,0.01116744]
[1767427028239,0.00029238,89549.0,89547.0,0.05583659]
[1767427028452,0.00024951,89549.0,89547.0,0.05583659]
[1767427029895,0.0112,89559.0,89553.0,0.01116657]
[1767427030089,0.0112,89559.0,89552.0,0.01116669]
[1767427030090,0.01116594,89558.0,89552.0,0.01116669]
[1767427030335,0.01116594,89558.0,89550.0,0.05583472]
[1767427030750,0.01116607,89557.0,89550.0,0.01116694]
[1767427030958,0.01116632,89555.0,89549.0,0.01116707]
[1767427031352,0.01116619,89556.0,89551.0,0.01116682]
[1767427031552,0.05582827,89561.0,89551.0,0.01116682]
[1767427031553,0.01116569,89560.0,89554.0,0.01116644]
[1767427031756,0.01116557,89561.0,89554.0,0.01116644]
[1767427031757,0.01116557,89561.0,89556.0,0.01116619]
[1767427032160,0.01116569,89560.0,89554.0,0.01116644]
[1767427032364,0.01116557,89561.0,89555.0,0.01116632]
[1767427032561,0.0001498,89562.0,89555.0,0.01116632]
[1767427032748,0.01116557,89561.0,89555.0,0.01116632]
[1767427033155,0.01116557,89561.0,89556.0,0.01116619]
[1767427034402,0.000999,89556.0,89553.0,0.01116657]
[1767427034750,0.01116582,89559.0,89554.0,0.01116644]
[1767427035652,0.0001498,89562.0,89557.0,0.06699592]
[1767427035931,0.0001498,89562.0,89558.0,0.01116594]
[1767427036337,0.0001498,89562.0,89557.0,0.01116607]
[1767427036496,0.000999,89558.0,89555.0,0.01116632]
[1767427036900,0.01131524,89562.0,89556.0,0.01116619]
[1767427037106,0.01131524,89562.0,89557.0,0.01116607]
[1767427037483,0.0001498,89562.0,89557.0,0.01016707]
[1767427038875,0.0001498,89562.0,89558.0,0.01116594]
[1767427039073,0.01131524,89562.0,89557.0,0.01116607]
[1767427039638,0.01131524,89562.0,89556.0,0.01116619]
[1767427039952,0.01116557,89561.0,89553.0,0.06699902]
[1767427040153,0.0001498,89562.0,89556.0,0.01116619]
[1767427040653,0.0001498,89562.0,89558.0,0.01116594]
[1767427042343,0.0001498,89562.0,89556.0,0.01116619]
[1767427042545,0.01131524,89562.0,89557.0,0.01116607]
[1767427042714,0.01116557,89561.0,89556.0,0.01116619]
[1767427042914,0.04522198,89562.0,89557.0,0.01116607]
[1767427043152,0.0001498,89562.0,89558.0,0.01116594]
[1767427043358,0.04507218,89567.0,89558.0,0.01116594]
[1767427043359,1e-08,89582.0,89579.0,0.01116333]
[1767427043559,1e-08,89582.0,89581.0,0.00030762]
[1767427043940,1e-08,89582.0,89581.0,0.05612302]
[1767427044147,1e-08,89582.0,89579.0,0.06697987]
[1767427044343,1e-08,89582.0,89578.0,0.0112]
[1767427044544,0.04507219,89582.0,89578.0,0.03934354]
[1767427044771,0.0111622,89588.0,89576.0,0.0223637]
[1767427044772,0.05623451,89587.0,89582.0,0.01116295]
[1767427044942,0.05623451,89587.0,89581.0,0.01116308]
[1767427045156,0.01116245,89586.0,89580.0,0.0111632]
[1767427045356,0.0111627,89584.0,89578.0,0.05581676]
[1767427045530,0.000541,89580.0,89578.0,0.05581676]
[1767427045731,0.000541,89580.0,89577.0,0.01116357]
[1767427045964,0.0111627,89584.0,89579.0,0.01116333]
[1767427046411,0.0111627,89584.0,89578.0,0.01116345]
[1767427046754,0.06697409,89587.0,89578.0,0.01116345]
[1767427046967,0.01116258,89585.0,89578.0,0.01116345]
[1767427047166,0.0111627,89584.0,89578.0,0.01116345]
[1767427047366,0.01116258,89585.0,89579.0,0.01116333]
[1767427047569,0.01116258,89585.0,89580.0,0.0111632]
[1767427047770,0.01116258,89585.0,89579.0,0.01116333]
[1767427048051,0.01116258,89585.0,89580.0,0.0111632]
[1767427048253,0.01116245,89586.0,89579.0,0.01116333]
[1767427048451,0.01116245,89586.0,89580.0,0.0111632]
[1767427048827,0.06697409,89587.0,89581.0,0.01116308]
[1767427049353,0.01116258,89585.0,89579.0,0.01116333]
[1767427049520,0.01116258,89585.0,89580.0,0.0111632]
[1767427050196,0.01116245,89586.0,89581.0,1e-08]
[1767427050535,0.01116258,89585.0,89581.0,1e-08]
[1767427051325,0.01116407,89573.0,89565.0,0.06699021]
[1767427051551,0.0111637,89576.0,89568.0,0.0223647]
[1767427051711,0.0111642,89572.0,89568.0,0.0112]
[1767427051906,0.01116407,89573.0,89568.0,0.0112]
[1767427052352,0.01116395,89574.0,89568.0,0.0223647]
[1767427053050,0.01116407,89573.0,89568.0,0.06064752]
[1767427053232,0.01116407,89573.0,89568.0,0.07181222]
[1767427053773,0.01116407,89573.0,89568.0,0.06064752]
[1767427053948,0.01116395,89574.0,89569.0,0.01116457]
[1767427054146,0.01116407,89573.0,89568.0,0.06061222]
[1767427054348,0.01116407,89573.0,89568.0,0.04944752]
[1767427054567,0.01116407,89573.0,89567.0,0.01116482]
[1767427055400,0.01116382,89575.0,89570.0,0.01116445]
[1767427055622,0.01116382,89575.0,89573.0,0.000458]
[1767427055896,0.0111637,89576.0,89570.0,0.01116445]
[1767427056076,0.01116382,89575.0,89570.0,0.01116445]
[1767427057098,0.01116382,89575.0,89569.0,0.01116457]
[1767427057400,0.01116395,89574.0,89568.0,0.0111647]
[1767427057701,0.01116395,89574.0,89569.0,0.01116457]
[1767427058290,0.01116382,89575.0,89569.0,0.01116457]
[1767427058879,0.01116407,89573.0,89568.0,0.06061222]
[1767427059090,0.01116407,89573.0,89568.0,0.0111647]
[1767427059287,0.01116407,89573.0,89567.0,0.01116482]
[1767427059516,0.01116407,89573.0,89568.0,0.0111647]
[1767427059935,0.01116395,89574.0,89568.0,0.0111647]
[1767427060300,0.01116407,89573.0,89568.0,0.0111647]
[1767427060701,0.01116382,89575.0,89573.0,0.000458]
[1767427061354,0.01116395,89574.0,89570.0,0.04944752]
[1767427061530,0.01116395,89574.0,89569.0,0.01116457]
[1767427062450,0.01116395,89574.0,89565.0,0.06070497]
[1767427062598,0.01116395,89574.0,89565.0,0.0495399]
[1767427063192,0.01116432,89571.0,89565.0,0.0495399]
[1767427063397,0.0111647,89568.0,89565.0,0.0495399]
[1767427063595,0.0107067,89568.0,89565.0,0.0495399]
[1767427063799,0.01116457,89569.0,89565.0,0.0495399]
[1767427064476,0.05582475,89566.0,89565.0,0.0495399]
[1767427064670,0.0111642,89572.0,89547.0,0.01116731]
[1767427064671,0.04936346,89570.0,89547.0,0.01116731]
[1767427064823,0.04936346,89570.0,89549.0,0.04944752]
[1767427064824,0.01116644,89554.0,89549.0,0.04944752]
[1767427065026,0.01116619,89556.0,89549.0,0.04944752]
[1767427065230,0.06699666,89557.0,89549.0,0.11644941]
[1767427065231,0.01116607,89557.0,89549.0,0.11644941]
[1767427065452,0.05582924,89559.0,89552.0,0.01116669]
[1767427065632,0.01116594,89558.0,89552.0,0.01116669]
[1767427066289,0.01116607,89557.0,89551.0,0.01116682]
[1767427066450,0.01116607,89557.0,89552.0,0.06061421]
[1767427066647,0.01116582,89559.0,89553.0,0.01116657]
[1767427066854,0.01116569,89560.0,89554.0,0.01116644]
[1767427067501,0.01116569,89560.0,89553.0,0.06061409]
[1767427067674,0.01116594,89558.0,89553.0,0.04944752]
[1767427067873,0.01116582,89559.0,89553.0,0.06061409]
[1767427068757,0.01116594,89558.0,89553.0,0.04944752]
[1767427068982,0.01116594,89558.0,89553.0,0.06061409]
[1767427069292,0.01116594,89558.0,89553.0,0.04944752]
[1767427069490,0.01116594,89558.0,89553.0,0.06061409]
[1767427069705,0.01116607,89557.0,89553.0,0.04944752]